bitfinex-derivatives/quotes_SOLF0:USTF0_20260203
["timestamp","ask_amount","ask_price","bid_price","bid_amount"]
[1770132202047,18.65418729,101.15,101.05,551.32292885]
[1770132202252,24.6368488,101.14,101.05,551.32292885]
[1770132202453,24.6368488,101.14,101.05,18.15142885]
[1770132202454,33.5430488,101.14,101.05,18.15142885]
[1770132202657,5.98266151,101.12,101.05,18.15142885]
[1770132202857,18.65418729,101.11,101.03,394.52]
[1770132203052,14.89236151,101.1,101.02,27.06742885]
[1770132203655,5.98266151,101.1,101.02,27.06742885]
[1770132203851,193.47418729,101.11,101.03,138.6899]
[1770132204156,18.65418729,101.11,101.04,138.6748]
[1770132204361,18.65418729,101.11,101.03,18.15142885]
[1770132204656,24.6368488,101.1,101.01,551.40192885]
[1770132205051,24.6368488,101.1,100.98,138.7475]
[1770132205052,24.6368488,101.06,100.98,27.07112885]
[1770132205252,24.6368488,101.06,100.98,156.90962885]
[1770132205556,180.80266151,101.07,100.99,18.15142885]
[1770132205759,62.0,101.06,100.99,18.15142885]
[1770132206154,199.4568488,101.07,100.99,18.15142885]
[1770132206653,174.82,101.07,101.0,18.15142885]
[1770132207058,5.98266151,101.09,101.01,18.15142885]
[1770132207252,193.81418729,101.1,101.01,18.15142885]
[1770132207457,157.27768729,101.08,100.98,18.15142885]
[1770132207654,8.9125,101.07,100.99,18.15142885]
[1770132207957,172.1851488,101.07,100.99,18.15142885]
[1770132208157,33.5493488,101.07,100.99,18.15142885]
[1770132208557,172.1893488,101.07,100.99,18.15142885]
[1770132208758,33.5493488,101.07,100.99,18.15142885]
[1770132208958,172.1858488,101.07,100.99,18.15142885]
[1770132209159,234.1858488,101.07,100.99,18.15142885]
[1770132209359,8.9134,101.06,100.99,18.15142885]
[1770132209862,18.65418729,101.04,100.96,27.07272885]
[1770132210258,175.54,101.05,100.98,18.15142885]
[1770132210455,8.9142,101.05,100.98,18.15142885]
[1770132210655,163.2733488,101.07,100.98,18.15142885]
[1770132211351,8.9133,101.06,100.98,27.07112885]
[1770132211556,138.6632,101.05,100.98,18.15142885]
[1770132211956,144.64586151,101.05,100.98,18.15142885]
[1770132212156,33.5511488,101.05,100.97,403.6608]
[1770132212351,163.3007488,101.05,100.97,394.74]
[1770132212556,314.3565,101.07,100.97,394.74]
[1770132212557,200.3568488,101.07,100.98,18.15142885]
[1770132213157,8.9138,101.06,100.98,27.07132885]
[1770132214057,8.9142,101.05,100.98,18.15142885]
[1770132214460,8.9142,101.05,100.92,144.81156151]
[1770132214461,157.36228729,101.02,100.92,18.15142885]
[1770132214663,27.57278729,101.0,100.92,18.15142885]
[1770132214865,27.57278729,101.0,100.92,156.99232885]
[1770132214866,18.65418729,101.0,100.92,156.99232885]
[1770132215067,5.98266151,101.01,100.93,18.15142885]
[1770132215259,200.5768488,101.03,100.96,8.9218]
[1770132215458,24.6368488,101.03,100.96,8.9218]
[1770132215659,18.65418729,101.03,100.96,8.9218]
[1770132215858,18.65418729,101.03,100.92,533.6809]
[1770132215859,18.65418729,101.01,100.92,533.6809]
[1770132216061,24.6368488,101.0,100.92,138.8407]
[1770132216265,24.6368488,101.02,100.93,18.15142885]
[1770132216664,24.6368488,101.02,100.95,18.15142885]
[1770132216665,18.65418729,101.02,100.95,18.15142885]
[1770132216860,5.98266151,101.04,100.96,18.15142885]
[1770132217072,8.915,101.04,100.97,8.921]
[1770132217267,18.65418729,101.05,100.97,8.921]
[1770132217467,157.31738729,101.05,100.97,8.921]
[1770132217665,18.65418729,101.05,100.97,8.921]
[1770132217858,157.31748729,101.05,100.96,18.15142885]
[1770132218363,18.65418729,101.05,100.96,18.15142885]
[1770132218872,18.65418729,101.05,100.96,156.93542885]
[1770132219074,18.65418729,101.05,100.98,18.15142885]
[1770132220473,8.9151,101.04,100.98,18.15142885]
[1770132221171,8.916,101.03,100.95,27.07362885]
[1770132221572,163.3141488,101.04,100.95,27.07362885]
[1770132221868,163.3141488,101.04,100.96,8.9219]
[1770132222073,24.6368488,101.04,100.96,8.9219]
[1770132222266,24.6368488,101.04,100.96,18.15142885]
[1770132222468,18.65418729,101.04,100.97,27.07232885]
[1770132222668,18.65418729,101.07,100.97,18.15142885]
[1770132222869,157.29078729,101.07,100.99,18.15142885]
[1770132223472,166.20388729,101.07,100.99,27.07062885]
[1770132223676,18.65418729,101.07,100.99,156.89542885]
[1770132224064,24.6368488,101.11,101.01,156.86792885]
[1770132224264,18.65418729,101.11,101.03,18.15142885]
[1770132224564,157.23548729,101.11,101.03,18.15142885]
[1770132224870,8.9105,101.09,101.03,18.15142885]
[1770132225070,18.65418729,101.11,101.03,18.15142885]
[1770132225373,8.9105,101.1,101.03,18.15142885]
[1770132225770,18.65418729,101.09,101.01,394.98]
[1770132226071,18.65418729,101.09,101.01,18.15142885]
[1770132226273,8.9116,101.08,101.01,18.15142885]
[1770132226461,18.65418729,101.08,100.99,533.7049]
[1770132226663,18.65418729,101.08,101.0,18.15142885]
[1770132227069,27.56558729,101.08,101.01,8.9175]
[1770132227767,14.89196151,101.11,101.02,18.15142885]
[1770132227972,18.65418729,101.12,101.03,18.15142885]
[1770132229179,8.9088,101.11,101.03,18.15142885]
[1770132229365,18.65418729,101.12,101.03,156.84112885]
[1770132229571,18.65418729,101.12,101.05,138.6617]
[1770132229874,18.65418729,101.14,101.05,18.15142885]
[1770132230078,18.65418729,101.14,101.05,156.81242885]
[1770132230374,18.65418729,101.14,101.07,8.9122]
[1770132230771,19.06380738,101.12,101.05,18.15142885]
[1770132231170,19.06380738,101.12,101.02,17.80596785]
[1770132231171,19.06380738,101.1,101.02,17.80596785]
[1770132231472,19.06380738,101.1,101.02,156.50546785]
[1770132231673,175.9,101.12,101.04,156.48056785]
[1770132231871,194.96380738,101.12,101.04,17.80596785]
[1770132232765,256.96380738,101.12,101.04,17.80596785]
[1770132232974,8.9088,101.11,101.04,17.80596785]
[1770132233175,256.96380738,101.12,101.04,17.80596785]
[1770132233768,194.96380738,101.12,101.04,17.80596785]
[1770132233967,194.96380738,101.12,101.04,156.47706785]
[1770132234183,18.77139642,101.14,101.06,156.27683711]
[1770132234677,18.77139642,101.13,101.06,26.54033711]
[1770132234876,18.77139642,101.13,101.06,17.62793711]
[1770132235278,18.77139642,101.13,101.08,8.9113]
[1770132235474,204.27659642,101.16,101.07,138.6336]
[1770132235673,18.77139642,101.16,101.08,156.24663711]
[1770132235884,18.77139642,101.16,101.08,17.62793711]
[1770132236579,18.77139642,101.16,101.1,8.9096]
[1770132237172,18.77139642,101.15,101.09,8.9104]
[1770132237380,18.77139642,101.15,101.08,17.62793711]
[1770132237572,24.75405793,101.15,101.08,17.62793711]
[1770132237882,18.77139642,101.14,101.05,480.82353711]
[1770132238172,18.77139642,101.14,101.06,138.6492]
[1770132238372,86.75405793,101.17,101.07,294.88803711]
[1770132238772,86.75405793,101.17,101.1,8.9094]
[1770132239178,95.65835793,101.17,101.1,8.9094]
[1770132239776,18.77139642,101.16,101.08,26.53863711]
[1770132239973,24.75405793,101.15,101.05,551.08353711]
[1770132240281,163.31215793,101.13,101.05,17.62793711]
[1770132240481,24.7402937,101.13,101.05,17.62793711]
[1770132240676,5.96889728,101.15,101.06,17.62793711]
[1770132240882,18.77139642,101.15,101.08,8.9113]
[1770132241584,27.67659642,101.15,101.08,8.9113]
[1770132241983,18.77139642,101.15,101.09,8.9104]
[1770132242180,8.9044,101.16,101.08,156.24743711]
[1770132242380,201.2402937,101.18,101.09,17.62793711]
[1770132242883,201.2402937,101.18,101.07,533.3953]
[1770132242884,18.77139642,101.14,101.07,394.76]
[1770132243193,18.77139642,101.14,100.95,85.62205041]
[1770132243194,8.9177,101.01,100.95,85.62205041]
[1770132243481,182.44889728,101.02,100.94,76.69955041]
[1770132243787,5.96889728,101.05,100.96,76.69955041]
[1770132243985,138.6493,101.06,100.98,76.69955041]
[1770132244288,138.6786,101.04,100.95,76.69955041]
[1770132244487,5.96889728,101.05,100.96,215.48565041]
[1770132244678,5.96889728,101.07,100.99,76.69955041]
[1770132244883,14.88139728,101.07,100.99,85.61855041]
[1770132245684,138.6521,101.06,100.99,76.69955041]
[1770132245884,5.96889728,101.05,100.97,8.9204]
[1770132246385,8.9151,101.04,100.96,85.62125041]
[1770132246788,8.916,101.03,100.96,76.69955041]
[1770132246990,144.66249728,101.03,100.93,76.69955041]
[1770132247184,5.96889728,101.01,100.93,76.69955041]
[1770132247790,14.88659728,101.01,100.93,85.62405041]
[1770132247990,5.96889728,101.01,100.93,76.69955041]
[1770132248294,5.96889728,101.03,100.96,76.69955041]
[1770132248690,5.96889728,101.03,100.93,610.38685041]
[1770132248889,5.96889728,101.01,100.93,76.69955041]
[1770132249084,5.96889728,101.01,100.94,76.69955041]
[1770132249282,138.6909,101.03,100.94,85.62295041]
[1770132249283,144.66259728,101.03,100.94,85.62295041]
[1770132249795,144.69179728,101.01,100.92,76.69955041]
[1770132249993,5.96889728,101.01,100.93,8.9242]
[1770132250290,138.6937,101.03,100.93,8.9242]
[1770132250291,5.96889728,101.03,100.95,76.69955041]
[1770132250791,182.34889728,101.05,100.96,76.69955041]
[1770132250988,138.6767,101.04,100.96,76.69955041]
[1770132251185,5.96889728,101.01,100.94,76.69955041]
[1770132251384,5.96889728,101.03,100.95,76.69955041]
[1770132251585,315.0432,101.05,100.95,76.69955041]
[1770132251586,321.01209728,101.05,100.96,76.69955041]
[1770132251986,315.0432,101.05,100.96,76.69955041]
[1770132252187,321.01209728,101.05,100.96,76.69955041]
[1770132252385,321.01209728,101.05,100.97,85.62035041]
[1770132252386,182.34889728,101.05,100.97,85.62035041]
[1770132253389,8.9152,101.04,100.97,76.69955041]
[1770132253586,8.9152,101.04,100.95,147.7186]
[1770132253587,138.6793,101.04,100.95,85.62185041]
[1770132253792,138.6793,101.04,100.95,76.69955041]
[1770132253793,8.9178,101.01,100.95,76.69955041]
[1770132254092,5.96889728,101.01,100.93,215.52595041]
[1770132254282,5.96889728,101.03,100.95,76.69955041]
[1770132255089,14.88479728,101.03,100.95,76.69955041]
[1770132256684,8.9159,101.03,100.95,76.69955041]
[1770132257093,8.9159,101.03,100.96,85.62145041]
[1770132258188,8.9184,101.0,100.92,76.62870387]
[1770132258891,8.9193,100.99,100.92,76.62870387]
[1770132259195,14.88819728,100.99,100.92,76.62870387]
[1770132259395,8.922,100.96,100.88,76.55647249]
[1770132259590,5.96889728,100.98,100.89,76.55647249]
[1770132259994,8.922,100.96,100.89,76.55647249]
[1770132260394,200.7749,100.97,100.89,76.55647249]
[1770132260895,138.8037,100.95,100.89,76.55647249]
[1770132261086,144.75739728,100.96,100.89,76.55647249]
[1770132262092,8.9238,100.94,100.89,76.55647249]
[1770132263095,8.9246,100.93,100.89,76.55647249]
[1770132263394,8.9246,100.93,100.86,76.04475573]
[1770132263598,8.9255,100.92,100.86,76.04475573]
[1770132263794,138.8444,100.92,100.86,76.04475573]
[1770132264001,322.79329728,100.92,100.83,76.04475573]
[1770132264394,8.9281,100.89,100.83,84.97805573]
[1770132264590,138.8579,100.91,100.83,84.97805573]
[1770132265493,8.9283,100.89,100.83,76.04475573]
[1770132265690,144.83819728,100.9,100.83,76.04475573]
[1770132266194,8.9291,100.88,100.83,76.04475573]
[1770132266492,5.96889728,100.88,100.8,85.00576529]
[1770132266892,5.96889728,100.88,100.8,76.06996529]
[1770132266893,138.9245,100.86,100.8,76.06996529]
[1770132267399,138.9159,100.87,100.8,76.06996529]
[1770132267606,147.8465,100.87,100.8,76.06996529]
[1770132268098,178.62,100.88,100.8,76.06996529]
[1770132268301,324.11359728,100.89,100.8,76.06996529]
[1770132269498,144.83649728,100.91,100.81,76.6853989]
[1770132270399,179.58,100.9,100.81,76.6853989]
[1770132270598,318.45,100.9,100.81,76.6853989]
[1770132270895,144.85219728,100.89,100.81,76.6853989]
[1770132271101,144.88309728,100.87,100.78,76.6853989]
[1770132271695,8.9313,100.86,100.78,85.6230989]
[1770132272198,8.9302,100.87,100.79,85.6222989]
[1770132272589,144.85219728,100.89,100.79,139.0194]
[1770132272797,8.9288,100.89,100.82,76.6853989]
[1770132273096,138.8545,100.92,100.83,76.6853989]
[1770132273697,138.8846,100.89,100.83,76.6853989]
[1770132273900,324.59349728,100.89,100.8,76.6853989]
[1770132274199,144.87969728,100.87,100.8,76.6853989]
[1770132274795,8.931,100.86,100.8,76.6853989]
[1770132275490,147.8278,100.88,100.8,76.6853989]
[1770132275691,324.59349728,100.89,100.8,85.6213989]
[1770132275990,324.59199728,100.89,100.8,76.6853989]
[1770132276300,186.18889728,100.89,100.81,85.6204989]
[1770132276503,5.96889728,100.91,100.82,76.6853989]
[1770132277201,319.154,100.92,100.83,76.6853989]
[1770132277399,138.8696,100.9,100.83,76.6853989]
[1770132278400,186.60889728,100.91,100.83,76.6853989]
[1770132279301,8.9274,100.9,100.83,85.6187989]
[1770132279499,325.46509728,100.91,100.83,76.6853989]
[1770132279701,144.82509728,100.91,100.83,76.6853989]
[1770132279903,325.80509728,100.91,100.83,76.6853989]
[1770132280102,8.93,100.87,100.8,85.6208989]
[1770132280703,138.8984,100.88,100.8,85.6208989]
[1770132281700,8.9308,100.86,100.8,76.6853989]
[1770132281898,138.9256,100.86,100.77,76.6853989]
[1770132282105,138.9548,100.84,100.77,76.6853989]
[1770132282306,138.98,100.82,100.74,76.6853989]
[1770132282507,5.96889728,100.81,100.74,76.6853989]
[1770132282816,144.96789728,100.81,100.74,76.6853989]
[1770132283305,8.9371,100.79,100.74,76.6853989]
[1770132283707,5.96889728,100.81,100.74,76.6853989]
[1770132283903,144.96259728,100.81,100.74,76.6853989]
[1770132284799,8.937,100.79,100.74,76.6853989]
[1770132285711,8.9383,100.78,100.71,85.6290989]
[1770132286711,8.9383,100.78,100.72,85.6283989]
[1770132287211,8.937,100.79,100.72,85.6283989]
[1770132287612,138.98,100.82,100.73,76.6853989]
[1770132288108,321.24,100.82,100.73,76.6853989]
[1770132288911,139.0073,100.8,100.73,76.6853989]
[1770132289315,144.96259728,100.81,100.73,76.6853989]
[1770132289515,8.937,100.79,100.73,85.6276989]
[1770132290112,8.9361,100.8,100.73,76.6853989]
[1770132290513,144.96339728,100.81,100.73,76.6853989]
[1770132290716,8.937,100.79,100.73,76.6853989]
[1770132290911,144.96339728,100.81,100.73,76.6853989]
[1770132291214,5.96889728,100.81,100.73,76.6853989]
[1770132291406,327.62229728,100.81,100.73,76.6853989]
[1770132291916,8.9371,100.79,100.73,76.6853989]
[1770132292113,188.62889728,100.81,100.73,76.6853989]
[1770132292918,327.62279728,100.81,100.73,85.6275989]
[1770132293218,327.62279728,100.81,100.73,76.6853989]
[1770132293517,8.9371,100.79,100.73,85.6276989]
[1770132293718,8.9371,100.79,100.73,76.6853989]
[1770132295519,144.99339728,100.79,100.7,76.71139807]
[1770132295718,328.35339728,100.79,100.7,76.71139807]
[1770132295922,139.0096,100.8,100.67,85.65839807]
[1770132295923,8.9415,100.74,100.67,85.65839807]
[1770132296111,322.4902,100.74,100.67,76.71139807]
[1770132296316,183.4,100.74,100.67,76.71139807]
[1770132296615,8.9424,100.73,100.67,76.71139807]
[1770132296812,183.4,100.74,100.67,76.71139807]
[1770132297114,192.3415,100.74,100.67,76.71139807]
[1770132297720,183.4,100.74,100.68,85.65739807]
[1770132298019,8.9406,100.75,100.68,76.71139807]
[1770132298518,322.9499,100.77,100.68,76.71139807]
[1770132298519,8.9415,100.74,100.68,85.65809807]
[1770132298719,322.9499,100.77,100.68,76.71139807]
[1770132300324,5.96889728,100.78,100.7,76.71139807]
[1770132300522,139.0132,100.8,100.71,76.71139807]
[1770132300821,139.0358,100.78,100.71,76.71139807]
[1770132301024,139.0671,100.76,100.67,76.71139807]
[1770132301221,139.0914,100.74,100.67,76.71139807]
[1770132301421,329.57592032,100.73,100.63,76.71139807]
[1770132301622,329.57592032,100.73,100.64,76.71139807]
[1770132301925,184.46,100.73,100.67,85.65889807]
[1770132302221,323.5654,100.73,100.67,76.71139807]
[1770132302422,329.57342032,100.73,100.64,76.71139807]
[1770132302819,139.1185,100.72,100.64,76.71139807]
[1770132303022,6.00802032,100.69,100.61,76.71493366]
[1770132303321,190.92802032,100.69,100.61,76.71493366]
[1770132303516,330.12652032,100.72,100.62,76.71493366]
[1770132303921,330.12652032,100.72,100.64,76.71493366]
[1770132304119,139.1328,100.71,100.64,76.71493366]
[1770132304522,201.1328,100.71,100.64,76.71493366]
[1770132304724,8.9452,100.7,100.64,76.71493366]
[1770132305024,6.00802032,100.72,100.64,76.71493366]
[1770132305226,191.60802032,100.74,100.65,76.71493366]
[1770132305526,330.69782032,100.74,100.65,76.71493366]
[1770132306327,8.9435,100.72,100.65,85.66413366]
[1770132307425,145.12672032,100.72,100.63,76.71493366]
[1770132307826,139.133,100.71,100.63,76.71493366]
[1770132308017,139.1588,100.69,100.63,76.71493366]
[1770132308218,145.18112032,100.68,100.6,76.71493366]
[1770132308625,8.9486,100.66,100.6,76.71493366]
[1770132308923,185.92,100.66,100.6,76.71493366]
[1770132310526,139.2017,100.66,100.6,76.71493366]
[1770132310732,139.2153,100.65,100.6,76.71493366]
[1770132311226,8.9505,100.64,100.6,76.71493366]
[1770132311426,139.1869,100.67,100.6,76.71493366]
[1770132311627,139.2008,100.66,100.61,3.45625393]
[1770132311826,148.1501,100.66,100.62,3.45625393]
[1770132312033,139.1869,100.67,100.59,76.71493366]
[1770132312233,139.2004,100.66,100.59,76.71493366]
[1770132312837,8.9504,100.64,100.59,76.71493366]
[1770132313727,139.2311,100.64,100.56,76.71493366]
[1770132314526,8.9521,100.62,100.56,85.67233366]
[1770132314732,333.06312032,100.65,100.56,85.67233366]
[1770132315128,327.0551,100.65,100.56,85.67233366]
[1770132315330,139.1869,100.67,100.58,76.71493366]
[1770132315634,333.18172032,100.68,100.58,76.71493366]
[1770132316030,8.949,100.66,100.58,85.67043366]
[1770132316332,145.21082032,100.66,100.58,76.71493366]
[1770132316929,6.00802032,100.64,100.55,445.01493366]
[1770132317136,194.14802032,100.64,100.55,76.71493366]
[1770132317437,333.35082032,100.66,100.56,76.71493366]
[1770132317832,8.9498,100.65,100.57,85.67143366]
[1770132318235,6.00802032,100.64,100.57,76.71493366]
[1770132318435,194.14802032,100.64,100.57,76.71493366]
[1770132318630,8.9513,100.63,100.55,76.71493366]
[1770132318840,333.37652032,100.64,100.55,76.71493366]
[1770132319432,8.9521,100.62,100.55,76.71493366]
[1770132319632,194.14802032,100.64,100.55,76.71493366]
[1770132320137,6.00802032,100.68,100.57,76.71493366]
[1770132320338,188.36,100.67,100.59,76.70538705]
[1770132320537,188.36,100.67,100.59,85.66008705]
[1770132320538,197.3078,100.67,100.59,85.66008705]
[1770132320728,197.3078,100.67,100.59,76.70538705]
[1770132320932,327.5484,100.67,100.59,76.70538705]
[1770132321133,6.00802032,100.66,100.59,76.70538705]
[1770132321838,8.9486,100.66,100.59,76.70538705]
[1770132322131,6.00802032,100.66,100.59,76.70538705]
[1770132322340,8.9504,100.64,100.56,76.70538705]
[1770132323337,8.9504,100.64,100.56,85.66208705]
[1770132323531,6.00802032,100.66,100.56,76.70538705]
[1770132323736,145.16692032,100.69,100.58,76.70538705]
[1770132324035,145.16692032,100.69,100.6,76.70538705]
[1770132324238,139.1737,100.68,100.61,3.43663167]
[1770132324438,139.1737,100.68,100.62,3.43663167]
[1770132324439,139.1867,100.67,100.62,3.43663167]
[1770132324637,139.1867,100.67,100.63,3.43663167]
[1770132324837,145.19472032,100.67,100.6,76.70538705]
[1770132325039,189.24,100.66,100.61,3.4404003]
[1770132325237,189.24,100.66,100.62,3.44035165]
[1770132325436,189.24,100.66,100.57,76.70538705]
[1770132325638,189.24,100.66,100.59,76.70538705]
[1770132325835,189.24,100.66,100.6,3.4431272]
[1770132326035,189.24,100.66,100.59,76.70538705]
[1770132326036,189.24,100.66,100.61,3.4431272]
[1770132326238,189.24,100.66,100.62,3.4431272]
[1770132326440,328.4412,100.66,100.59,76.70538705]
[1770132327936,139.2168,100.65,100.59,76.70538705]
[1770132328131,328.4412,100.66,100.59,76.70538705]
[1770132328334,189.24,100.66,100.59,76.70538705]
[1770132328739,139.1593,100.69,100.6,76.70538705]
[1770132329037,191.68,100.69,100.61,76.70538705]
[1770132330242,8.9479,100.67,100.61,76.70538705]
[1770132330734,8.9479,100.67,100.61,85.65758705]
[1770132330936,191.96,100.7,100.61,76.70538705]
[1770132331134,145.11092032,100.74,100.64,76.70538705]
[1770132331331,139.084,100.75,100.68,76.70538705]
[1770132331537,139.0386,100.78,100.69,76.70538705]
[1770132331742,192.02,100.8,100.72,76.70538705]
[1770132331932,192.02,100.8,100.73,85.64768705]
[1770132332133,8.9371,100.79,100.73,76.70538705]
[1770132333640,200.9765,100.83,100.74,76.70538705]
[1770132333842,138.9765,100.83,100.74,76.70538705]
[1770132334237,139.0236,100.79,100.71,76.70538705]
[1770132334439,139.1037,100.73,100.68,76.70538705]
[1770132334641,139.1037,100.73,100.65,76.70538705]
[1770132334947,337.96042032,100.74,100.65,85.65468705]
[1770132335742,198.86802032,100.74,100.65,85.65468705]
[1770132336539,139.1075,100.73,100.65,76.70538705]
[1770132336746,207.12852032,100.72,100.62,76.70538705]
[1770132337047,6.00802032,100.7,100.62,76.70538705]
[1770132337248,199.36802032,100.7,100.62,76.70538705]
[1770132337652,208.31342032,100.7,100.62,76.70538705]
[1770132338342,8.946,100.69,100.62,76.70538705]
[1770132338547,6.00802032,100.68,100.59,85.65938705]
[1770132339347,6.00802032,100.66,100.59,76.70538705]
[1770132339547,199.64802032,100.66,100.59,76.70538705]
[1770132340450,208.59712032,100.66,100.59,76.70538705]
[1770132340948,199.64802032,100.66,100.58,76.70538705]
[1770132341145,193.64,100.66,100.59,76.70538705]
[1770132341349,8.9483,100.67,100.59,76.70538705]
[1770132341540,200.32802032,100.68,100.59,216.00148705]
[1770132341743,194.32,100.68,100.61,76.70538705]
[1770132342142,8.9478,100.67,100.61,76.70538705]
[1770132342348,139.1879,100.67,100.58,76.70538705]
[1770132342551,339.50192032,100.68,100.58,76.70538705]
[1770132342751,8.9487,100.66,100.58,85.66088705]
[1770132342950,200.32802032,100.68,100.59,76.70538705]
[1770132343746,8.9479,100.67,100.59,85.65998705]
[1770132344854,139.1874,100.67,100.61,76.70538705]
[1770132345655,8.9488,100.66,100.58,76.70538705]
[1770132346253,8.9488,100.66,100.58,85.66038705]
[1770132347052,8.9499,100.65,100.58,76.70538705]
[1770132347256,278.4385,100.65,100.58,76.70538705]
[1770132348257,8.9505,100.64,100.58,76.70538705]
[1770132348858,204.5905,100.64,100.58,76.70538705]
[1770132349554,8.9512,100.63,100.55,85.66358705]
[1770132349754,201.64802032,100.64,100.55,85.66358705]
[1770132350156,210.59832032,100.64,100.56,85.66278705]
[1770132350352,195.64,100.64,100.56,76.70538705]
[1770132350654,68.00802032,100.66,100.56,76.70538705]
[1770132350865,341.37392032,100.68,100.58,76.66122287]
[1770132351461,8.948,100.67,100.59,8.9548]
[1770132351659,8.948,100.67,100.59,85.61602287]
[1770132352156,202.08802032,100.71,100.63,76.66122287]
[1770132352356,202.06802032,100.73,100.64,76.66122287]
[1770132353161,6.00802032,100.73,100.65,8.9491]
[1770132353356,196.16,100.72,100.65,8.9491]
[1770132353756,196.16,100.72,100.64,85.61152287]
[1770132354851,6.00802032,100.71,100.62,405.4512]
[1770132355156,6.00802032,100.71,100.62,482.10531103]
[1770132355862,145.14042032,100.71,100.62,85.60531103]
[1770132356557,6.00802032,100.71,100.63,8.9512]
[1770132356864,196.16,100.72,100.64,76.65411103]
[1770132357352,62.0,100.73,100.67,76.65411103]
[1770132357550,6.00802032,100.77,100.68,76.65411103]
[1770132357953,323.9073,100.78,100.69,85.59991103]
[1770132358157,386.68437054,100.81,100.72,76.65411103]
[1770132358455,8.9359,100.81,100.73,76.65411103]
[1770132358662,196.58,100.82,100.74,76.65411103]
[1770132359055,8.9336,100.83,100.75,85.59461103]
[1770132359264,138.9793,100.82,100.75,76.65411103]
[1770132359463,8.9372,100.79,100.72,76.65411103]
[1770132359660,139.0096,100.8,100.72,76.65411103]
[1770132359661,6.00802032,100.8,100.72,76.65411103]
[1770132360062,335.754,100.81,100.72,76.65411103]
[1770132360260,144.98732032,100.82,100.74,76.65411103]
[1770132360261,8.935,100.82,100.74,76.65411103]
[1770132360462,196.78,100.84,100.77,76.65411103]
[1770132360761,138.954,100.84,100.77,76.65411103]
[1770132361065,6.00802032,100.88,100.8,76.65411103]
[1770132361362,138.8821,100.9,100.79,139.0194]
[1770132361363,138.873,100.9,100.82,76.65411103]
[1770132361567,138.8978,100.88,100.79,76.65411103]
[1770132361767,144.93302032,100.86,100.78,396.38]
[1770132362062,202.94802032,100.88,100.79,76.65411103]
[1770132362257,341.85092032,100.88,100.79,76.65411103]
[1770132362456,335.8429,100.88,100.79,76.65411103]
[1770132362666,8.9285,100.89,100.81,76.65411103]
[1770132363065,350.82881329,100.91,100.81,76.65411103]
[1770132363265,350.82881329,100.91,100.79,535.3146]
[1770132363266,335.896,100.91,100.82,76.65411103]
[1770132363467,138.883,100.89,100.82,76.65411103]
[1770132363662,8.9286,100.89,100.82,76.65411103]
[1770132363968,67.99711329,100.9,100.82,76.65411103]
[1770132364364,62.0,100.9,100.82,76.65411103]
[1770132364559,62.0,100.9,100.83,76.65411103]
[1770132364760,138.8228,100.94,100.86,76.65411103]
[1770132364761,14.92081329,100.94,100.86,76.65411103]
[1770132364964,197.24,100.95,100.87,76.65411103]
[1770132365561,336.0413,100.95,100.87,76.65411103]
[1770132365765,144.82671329,100.93,100.84,76.65411103]
[1770132366370,5.99711329,100.97,100.88,76.65411103]
[1770132366567,144.77101329,100.97,100.88,76.65411103]
[1770132366970,147.7099,100.96,100.88,76.65411103]
[1770132367164,138.7876,100.96,100.88,76.65411103]
[1770132367362,138.8207,100.94,100.86,76.65411103]
[1770132367672,153.72131329,100.95,100.86,76.65411103]
[1770132367893,144.72651329,101.01,100.91,76.65411103]
[1770132368169,147.6509,101.0,100.91,76.65411103]
[1770132368572,144.72651329,101.01,100.91,76.65411103]
[1770132368573,147.6473,101.01,100.91,76.65411103]
[1770132368775,138.7043,101.02,100.93,76.65411103]
[1770132368965,138.6929,101.03,100.93,76.65411103]
[1770132369169,147.6218,101.02,100.93,76.65411103]
[1770132369473,138.7181,101.01,100.93,76.65411103]
[1770132369768,342.27621329,101.04,100.95,76.65411103]
[1770132369970,415.9011,101.08,100.95,76.65411103]
[1770132369971,144.62101329,101.08,100.99,76.65411103]
[1770132370167,147.5348,101.08,100.99,76.65411103]
[1770132370372,138.6657,101.05,100.99,76.65411103]
[1770132370770,8.9141,101.05,100.99,76.65411103]
[1770132370969,138.7046,101.02,100.94,76.65411103]
[1770132371475,144.67441329,101.04,100.95,76.65411103]
[1770132371674,138.7049,101.02,100.95,76.65411103]
[1770132371872,147.6216,101.02,100.95,76.65411103]
[1770132372470,138.6907,101.03,100.95,76.65411103]
[1770132372673,153.58981329,101.04,100.95,76.65411103]
[1770132373173,147.609,101.03,100.95,76.65411103]
[1770132373373,138.6928,101.03,100.95,76.65411103]
[1770132373572,138.7184,101.01,100.95,76.65411103]